bitfinex/quotes_SOLUSD_20250924
["timestamp","ask_amount","ask_price","bid_price","bid_amount"]
[1758708412978,26.0,211.36,211.3,0.68]
[1758708413180,0.69,211.37,211.3,0.68]
[1758708413483,1.49500012,211.39,211.3,0.68]
[1758708413895,37.71,211.4,211.31,0.14216157]
[1758708414206,37.71,211.4,211.32,0.68]
[1758708414489,42.44046544,211.4,211.32,0.68]
[1758708414986,0.1,211.43,211.37,0.14216157]
[1758708415162,0.1,211.43,211.38,0.68]
[1758708415362,0.1,211.43,211.36,26.0]
[1758708415659,0.1,211.43,211.38,0.68]
[1758708416982,5.5196994,211.43,211.38,0.68]
[1758708417188,0.69,211.42,211.35,4.73134149]
[1758708417497,0.1,211.43,211.36,2.17500012]
[1758708417692,0.1,211.43,211.37,0.68]
[1758708419701,0.1,211.43,211.38,4.73081653]
[1758708419873,0.1,211.43,211.39,0.7]
[1758708420075,0.1,211.43,211.4,0.7]
[1758708420576,0.1,211.43,211.38,6.92581665]
[1758708420780,0.1,211.43,211.39,0.7]
[1758708422294,0.1,211.43,211.36,1.49500012]
[1758708422491,0.1,211.43,211.39,0.7]
[1758708423281,0.77,211.43,211.36,2.19500012]
[1758708423704,5.49970835,211.43,211.36,6.92619085]
[1758708424182,0.77,211.43,211.36,6.92619085]
[1758708424586,4.82978396,211.43,211.34,1.49500012]
[1758708424787,0.67,211.42,211.34,1.49500012]
[1758708424991,0.67,211.42,211.34,6.92666488]
[1758708425682,0.1,211.43,211.38,1.49500012]
[1758708425910,0.1,211.43,211.39,0.7]
[1758708426395,0.1,211.43,211.4,0.7]
[1758708428417,0.1,211.43,211.41,0.7]
[1758708428616,0.1,211.43,211.42,1.49500012]
[1758708429109,0.1,211.43,211.42,2.19500012]
[1758708429712,0.1,211.43,211.42,5.42992148]
[1758708430700,0.1,211.43,211.42,5.57208305]
[1758708432607,0.1,211.43,211.42,20.66267718]
[1758708432608,1e-08,211.43,211.42,20.66267718]
[1758708432906,1e-08,211.43,211.42,19.16767706]
[1758708433088,1e-08,211.43,211.42,20.66267718]
[1758708434103,1e-08,211.43,211.42,19.16767706]
[1758708434413,1e-08,211.43,211.42,20.66267718]
[1758708434789,1e-08,211.43,211.42,7.06708317]
[1758708435009,1e-08,211.43,211.42,44.04708317]
[1758708435307,1e-08,211.43,211.42,43.9049216]
[1758708435904,1e-08,211.43,211.42,42.55208305]
[1758708436236,1e-08,211.43,211.42,4.72992148]
[1758708436527,1e-08,211.43,211.4,43.20514742]
[1758708436700,1e-08,211.43,211.38,6.22563324]
[1758708437011,0.67,211.42,211.38,43.20563324]
[1758708437413,1e-08,211.43,211.38,43.20563324]
[1758708437588,1e-08,211.43,211.38,55.03267458]
[1758708437794,0.67000001,211.43,211.38,55.73267458]
[1758708438004,1e-08,211.43,211.38,43.20563324]
[1758708438287,0.67,211.42,211.38,43.20563324]
[1758708438494,0.67,211.41,211.38,36.98]
[1758708438697,1e-08,211.43,211.41,26.0]
[1758708439691,1e-08,211.43,211.4,1.63716169]
[1758708439886,1e-08,211.43,211.4,39.23500012]
[1758708440101,1e-08,211.43,211.4,42.47022966]
[1758708440301,1e-08,211.43,211.4,41.77022966]
[1758708440912,0.7,211.42,211.36,11.82816048]
[1758708441119,1e-08,211.43,211.37,54.25864123]
[1758708441425,1e-08,211.43,211.38,1.49500012]
[1758708441729,1e-08,211.43,211.38,2.15500012]
[1758708441929,1e-08,211.43,211.39,0.66]
[1758708442116,1e-08,211.43,211.4,4.73036896]
[1758708442313,1e-08,211.43,211.4,5.39036896]
[1758708443426,1e-08,211.43,211.4,4.73036896]
[1758708444423,1e-08,211.43,211.39,4.73059274]
[1758708444627,0.70000001,211.43,211.39,4.73059274]
[1758708444834,1e-08,211.43,211.39,5.39059274]
[1758708447805,1e-08,211.43,211.41,4.73014521]
[1758708448227,1e-08,211.43,211.42,0.66]
[1758708448741,1e-08,211.43,211.42,37.80216157]
[1758708449235,1e-08,211.43,211.42,37.14216157]
[1758708449527,1e-08,211.43,211.42,37.66]
[1758708449714,1e-08,211.43,211.42,37.80216157]
[1758708449908,1e-08,211.43,211.42,42.53208305]
[1758708450510,1e-08,211.43,211.42,42.38992148]
[1758708451223,1e-08,211.43,211.42,42.53208305]
[1758708452320,1e-08,211.43,211.42,56.12767706]
[1758708455814,1e-08,211.43,211.42,57.62267718]
[1758708457047,1e-08,211.45,211.44,39.59559401]
[1758708457214,1e-08,211.45,211.44,78.2127557]
[1758708457416,1e-08,211.45,211.44,78.8727557]
[1758708457829,0.1,211.51,211.48,13.59559401]
[1758708458014,0.1,211.51,211.5,1.63716169]
[1758708458224,0.1,211.53,211.52,26.14216157]
[1758708458414,0.1,211.53,211.52,69.40484701]
[1758708458647,0.1,211.53,211.52,68.56984689]
[1758708460432,0.1,211.53,211.5,4.7279616]
[1758708460634,0.7,211.52,211.51,2.32595889]
[1758708461934,0.7,211.52,211.5,37.04]
[1758708462244,0.7,211.51,211.5,41.76813238]
[1758708463763,0.1,211.53,211.5,41.76813238]
[1758708463941,0.7,211.52,211.5,41.76813238]
[1758708466546,0.1,211.53,211.5,41.76813238]
[1758708466750,0.1,211.53,211.5,42.42813238]
[1758708467058,0.1,211.53,211.5,41.76813238]
[1758708467362,0.8,211.53,211.5,41.76813238]
[1758708467677,0.7,211.52,211.48,4.72837097]
[1758708467963,0.7,211.51,211.49,37.0]
[1758708468335,0.7,211.5,211.49,37.0]
[1758708468536,0.7,211.52,211.49,37.0]
[1758708468779,0.1,211.53,211.5,2.32595889]
[1758708468941,0.1,211.53,211.49,37.0]
[1758708469137,0.7,211.52,211.47,2.32595889]
[1758708469461,0.1,211.53,211.47,2.32595889]
[1758708469462,0.7,211.51,211.48,36.98]
[1758708470055,0.1,211.53,211.5,2.32595889]
[1758708470269,0.1,211.53,211.52,2.32595889]
[1758708470463,0.1,211.53,211.52,2.98595889]
[1758708470754,0.1,211.53,211.52,2.32595889]
[1758708471963,0.1,211.53,211.52,7.05364421]
[1758708472846,0.1,211.53,211.52,41.72768532]
[1758708474344,0.1,211.53,211.52,42.42768532]
[1758708474544,0.1,211.53,211.52,42.56984689]
[1758708480650,0.1,211.53,211.52,5.56984689]
[1758708480971,0.1,211.53,211.52,42.58984689]
[1758708482366,0.1,211.53,211.52,4.72768532]
[1758708482670,0.1,211.53,211.52,44.09364421]
[1758708482966,0.79,211.53,211.5,4.72813238]
[1758708483273,0.69,211.52,211.51,37.04]
[1758708483651,0.69,211.52,211.45,7.0552093]
[1758708483954,0.69,211.51,211.46,37.04]
[1758708484268,0.69,211.5,211.46,37.04]
[1758708484445,0.69,211.49,211.47,4.72880313]
[1758708484641,4.82752235,211.53,211.48,37.04]
[1758708484846,7.15348124,211.53,211.47,37.04]
[1758708485273,0.69,211.52,211.47,37.04]
[1758708485764,0.69,211.51,211.47,37.04]
[1758708486081,0.69,211.5,211.47,37.04]
[1758708486268,7.15348124,211.53,211.47,37.04]
[1758708486269,0.69,211.49,211.47,37.04]
[1758708486644,0.69,211.48,211.47,37.04]
[1758708487146,0.69,211.48,211.42,26.0]
[1758708487346,0.69,211.47,211.43,37.02]
[1758708487587,0.69,211.46,211.43,37.02]
[1758708487759,0.69,211.46,211.36,13.59559401]
[1758708487760,0.69,211.45,211.41,37.02]
[1758708487972,0.69,211.44,211.41,37.02]
[1758708488167,0.69,211.43,211.38,37.04]
[1758708488355,0.69,211.42,211.38,37.04]
[1758708488563,2.32595889,211.46,211.38,42.47060867]
[1758708488756,0.69,211.42,211.38,42.47060867]
[1758708489070,0.69,211.46,211.39,0.7]
[1758708489274,0.69,211.46,211.4,37.04]
[1758708490165,0.69,211.46,211.4,37.74]
[1758708490559,0.69,211.48,211.41,5.43014521]
[1758708491680,7.05432273,211.49,211.41,5.43014521]
[1758708491888,3.01595889,211.47,211.4,37.04]
[1758708492191,0.69,211.46,211.4,37.04]
[1758708492683,3.01595889,211.45,211.37,4.73082176]
[1758708492885,0.69,211.44,211.37,4.73082176]
[1758708493062,0.69,211.43,211.37,4.73082176]
[1758708493788,0.69,211.43,211.38,0.7]
[1758708493988,0.69,211.45,211.39,0.7]
[1758708494877,0.69,211.45,211.39,5.43046172]
[1758708495464,26.69,211.49,211.4,0.84216157]
[1758708495683,26.69,211.49,211.41,39.36595889]
[1758708495684,31.41838129,211.49,211.41,39.36595889]
[1758708495882,5.41838129,211.49,211.42,0.7]
[1758708496485,0.69,211.49,211.42,0.7]
[1758708496888,0.69,211.49,211.43,4.72969777]
[1758708497077,0.1,211.53,211.45,2.32595889]
[1758708497279,0.1,211.53,211.45,39.36595889]
[1758708497280,0.79,211.53,211.45,39.36595889]
[1758708497511,0.79,211.53,211.47,2.32595889]
[1758708497668,0.1,211.53,211.48,0.7]
[1758708497868,0.1,211.53,211.49,0.7]
[1758708498061,0.1,211.53,211.47,2.32595889]
[1758708498265,0.1,211.53,211.48,0.7]
[1758708498465,0.1,211.53,211.47,2.32595889]
[1758708498466,0.1,211.53,211.49,0.7]
[1758708499090,0.1,211.53,211.46,0.84216157]
[1758708499268,0.79,211.53,211.46,7.89714722]
[1758708499668,0.79,211.53,211.46,19.71971413]
[1758708499866,0.69,211.52,211.46,7.89714722]
[1758708500094,0.69,211.51,211.46,41.76902676]
[1758708500271,0.69,211.51,211.46,42.46902676]
[1758708500971,0.76,211.53,211.47,0.7]
[1758708501170,0.76,211.53,211.46,41.76902676]
[1758708501396,0.66,211.52,211.46,41.76902676]
[1758708502588,0.66,211.52,211.46,42.46902676]
[1758708503486,0.1,211.53,211.47,0.14216157]
[1758708503804,0.1,211.53,211.47,0.7]
[1758708505408,0.66,211.52,211.44,0.14216157]
[1758708505607,2.32595889,211.51,211.43,26.0]
[1758708505807,0.66,211.5,211.42,40.04595889]
[1758708505986,0.66,211.5,211.42,39.34595889]
[1758708506316,0.66,211.5,211.43,0.7]
[1758708506710,0.1,211.53,211.43,5.42949595]
[1758708506888,0.76,211.53,211.44,3.02595889]
[1758708507089,0.1,211.53,211.45,0.7]
[1758708507712,4.82747037,211.53,211.46,4.72902676]
[1758708507884,4.82747037,211.53,211.47,0.7]
[1758708508810,5.48747037,211.53,211.47,0.7]
[1758708509104,7.81342926,211.53,211.47,0.7]
[1758708509308,7.81342926,211.53,211.44,7.75523582]
[1758708509504,0.66,211.52,211.44,7.75523582]
[1758708509706,4.72790884,211.51,211.44,7.75523582]
[1758708510511,4.72790884,211.51,211.45,0.7]
[1758708510714,0.66,211.5,211.44,7.05523582]
[1758708510893,5.38819481,211.5,211.43,5.57185934]
[1758708511808,5.38819481,211.5,211.43,5.42969777]
[1758708512792,0.66,211.5,211.43,5.42969777]
[1758708512997,0.66,211.5,211.44,0.7]
[1758708513913,5.38814009,211.5,211.44,0.7]
[1758708514218,5.38814009,211.5,211.45,4.72925041]
[1758708514422,0.66,211.5,211.45,5.42925041]
[1758708515396,7.05390231,211.51,211.46,0.7]
[1758708515598,7.71390231,211.51,211.46,0.7]
[1758708516119,7.05390231,211.51,211.46,0.7]
[1758708516423,5.38815861,211.5,211.46,0.7]
[1758708516923,5.38815861,211.5,211.45,4.72925041]
[1758708517222,5.38815861,211.5,211.45,5.42925041]
[1758708517520,5.38815861,211.5,211.43,4.72969777]
[1758708517723,5.38815861,211.5,211.45,0.7]
[1758708518627,0.66,211.52,211.46,0.7]
[1758708519498,0.1,211.53,211.47,16.55081097]
[1758708519698,0.1,211.53,211.48,0.7]
[1758708520697,0.1,211.53,211.49,4.72835595]
[1758708520904,0.1,211.53,211.5,0.7]
[1758708522103,0.1,211.53,211.51,0.7]
[1758708523340,0.1,211.53,211.52,0.7]
[1758708524127,0.1,211.53,211.52,5.42768532]
[1758708530529,0.1,211.53,211.52,5.56984689]
[1758708532317,0.1,211.53,211.52,42.44984689]
[1758708533546,1e-08,211.53,211.52,56.0454409]
[1758708533734,0.1,211.55,211.53,13.73775558]
[1758708533735,1e-08,211.55,211.53,13.73775558]
[1758708534037,1e-08,211.55,211.54,0.14216157]
[1758708534246,1e-08,211.55,211.54,0.83216157]
[1758708534841,1e-08,211.55,211.54,2.7261458]
[1758708535214,1e-08,211.56,211.55,39.73775558]
[1758708535436,1e-08,211.57,211.56,39.73775558]
[1758708535637,1e-08,211.57,211.56,77.28775558]
[1758708536735,1e-08,211.57,211.56,78.77770504]
[1758708537724,1e-08,211.57,211.56,83.50449649]
[1758708538942,1e-08,211.57,211.56,163.70449649]
[1758708539642,1e-08,211.57,211.56,83.50449649]
[1758708539859,1e-08,211.57,211.56,45.15454703]
[1758708540052,1e-08,211.57,211.56,83.46449649]
[1758708541057,1e-08,211.57,211.56,81.97454703]
[1758708541376,0.69000001,211.57,211.56,36.82]
[1758708542626,1e-08,211.57,211.56,41.54679145]
[1758708543887,0.69000001,211.57,211.56,41.54679145]
[1758708544337,1e-08,211.57,211.56,4.72679145]
[1758708544537,0.69000001,211.57,211.56,36.82]
[1758708545161,0.69000001,211.57,211.56,41.54679145]
[1758708545162,1e-08,211.57,211.56,41.54679145]
[1758708545361,1e-08,211.57,211.56,42.25679145]
[1758708545563,1e-08,211.57,211.56,41.54679145]
[1758708548138,1e-08,211.57,211.56,42.25679145]
[1758708548347,1e-08,211.57,211.56,41.54679145]
[1758708549748,0.69000001,211.57,211.56,36.82]
[1758708550469,0.69000001,211.57,211.56,41.54679145]
[1758708551666,1e-08,211.57,211.56,41.54679145]
[1758708555265,1e-08,211.57,211.56,36.82]
[1758708555650,1e-08,211.57,211.56,41.54679145]
[1758708556050,0.69000001,211.57,211.56,41.54679145]
[1758708556253,1e-08,211.57,211.56,41.54679145]
[1758708556662,1e-08,211.57,211.56,42.25679145]
[1758708559669,1e-08,211.57,211.56,41.68895302]
[1758708560056,1e-08,211.57,211.56,42.39895302]
[1758708561772,1e-08,211.57,211.56,69.88890248]
[1758708562575,1e-08,211.57,211.56,83.48449649]
[1758708563075,1e-08,211.57,211.56,85.37839104]
[1758708565864,1e-08,211.57,211.56,165.57839104]
[1758708567776,1e-08,211.57,211.56,163.68449649]
[1758708568075,1e-08,211.57,211.56,165.57839105]
[1758708568373,1e-08,211.57,211.56,126.55844159]
[1758708568579,1e-08,211.57,211.56,162.87449649]
[1758708568758,0.68000001,211.57,211.56,30.72679145]
[1758708569079,0.68000001,211.57,211.56,67.44679145]
[1758708569459,1e-08,211.57,211.56,67.44679145]
[1758708569979,1e-08,211.57,211.56,67.58895302]
[1758708573986,0.68000001,211.57,211.56,67.58895302]
[1758708574388,0.68000001,211.57,211.56,4.72679145]
[1758708574677,0.68000001,211.57,211.56,41.44679145]
[1758708575489,1e-08,211.57,211.56,41.44679145]
[1758708577965,0.68000001,211.57,211.56,41.44679145]
[1758708578486,1e-08,211.57,211.56,41.58895302]
[1758708581102,1e-08,211.57,211.56,57.32449649]
[1758708582664,1e-08,211.57,211.56,58.16018371]
[1758708583276,1e-08,211.57,211.56,55.83454703]
[1758708583475,1e-08,211.57,211.56,4.86895302]
[1758708583799,1e-08,211.57,211.56,41.56895302]
[1758708584494,0.68000001,211.57,211.56,4.86895302]
[1758708584721,0.68000001,211.57,211.56,41.42679145]
[1758708585002,1e-08,211.57,211.56,41.42679145]
[1758708588073,1e-08,211.57,211.56,41.56895302]
[1758708588278,1e-08,211.57,211.56,44.5445897]
[1758708590280,1e-08,211.57,211.56,43.8945897]
[1758708590899,1e-08,211.57,211.56,44.6045897]
[1758708591407,1e-08,211.57,211.56,41.56895302]
[1758708591772,1e-08,211.57,211.56,41.42679145]
[1758708599900,0.71000001,211.57,211.56,4.72679145]
[1758708600099,0.71000001,211.57,211.56,41.42679145]
[1758708601309,0.71000001,211.57,211.56,4.72679145]
[1758708601614,0.71000001,211.57,211.56,41.42679145]
[1758708603320,0.71000001,211.57,211.55,4.72699777]
[1758708603527,0.71,211.56,211.55,36.7]
[1758708604117,0.71,211.56,211.51,16.54768095]
[1758708604322,0.71,211.55,211.51,16.54768095]
[1758708604507,0.71,211.54,211.52,36.7]
[1758708605395,0.71000001,211.57,211.53,17.26611638]
[1758708605618,0.71,211.56,211.54,36.7]
[1758708606615,1e-08,211.57,211.54,36.7]
[1758708606807,0.71,211.55,211.54,36.7]
[1758708607609,0.71000001,211.57,211.54,41.42723834]
[1758708607804,0.71,211.56,211.54,41.42723834]
[1758708608109,0.71,211.55,211.54,41.42723834]
[1758708609299,0.71000001,211.57,211.54,41.42723834]
[1758708609820,1e-08,211.57,211.54,41.42723834]
[1758708610025,0.71,211.56,211.54,41.42723834]
[1758708613628,0.71,211.56,211.53,36.7]
[1758708615026,1e-08,211.57,211.49,37.82075258]
[1758708615321,0.71,211.55,211.5,41.42813238]
[1758708615526,2.32563669,211.57,211.5,41.42813238]
[1758708615728,0.71,211.55,211.51,0.72]
[1758708616298,0.71,211.55,211.52,4.72768532]
[1758708616728,1e-08,211.57,211.52,4.72768532]
[1758708616921,0.71,211.56,211.52,5.44768532]
[1758708617228,3.03563668,211.55,211.51,36.7]
[1758708617411,0.71,211.54,211.51,36.7]
[1758708618015,4.72657153,211.57,211.51,37.42]
[1758708618016,2.32563669,211.57,211.51,37.42]
[1758708618223,0.71,211.56,211.51,37.42]
[1758708618416,0.71,211.56,211.52,5.44768532]
[1758708618805,2.32563669,211.57,211.52,5.44768532]
[1758708619020,3.03563669,211.57,211.52,5.44768532]
[1758708619220,0.71,211.56,211.52,5.44768532]
[1758708620620,1e-08,211.57,211.53,37.38]
[1758708620814,1e-08,211.57,211.54,0.68]
[1758708622032,1e-08,211.57,211.55,4.72701489]
[1758708622613,1e-08,211.57,211.56,0.68]
[1758708623329,1e-08,211.57,211.56,37.38]
[1758708623957,1e-08,211.57,211.56,42.10679145]
[1758708626128,1e-08,211.57,211.56,41.42679145]
[1758708626630,1e-08,211.57,211.56,4.72679145]
[1758708630234,1e-08,211.57,211.56,5.40679145]
[1758708632026,1e-08,211.57,211.56,4.72679145]
[1758708632438,1e-08,211.57,211.56,41.42679145]
[1758708632636,1e-08,211.57,211.56,4.72679145]
[1758708633973,3.03563669,211.57,211.51,14.82488037]
[1758708634170,3.03563669,211.57,211.53,36.7]
[1758708634326,3.03563669,211.57,211.48,17.22690714]
[1758708634327,2.32563668,211.55,211.48,17.22690714]
[1758708634529,0.71,211.54,211.49,36.7]
[1758708634760,0.71,211.53,211.49,36.7]
[1758708635342,0.71,211.53,211.5,7.19849444]
[1758708636369,3.03563668,211.55,211.5,7.19849444]
[1758708636537,0.71,211.54,211.5,7.19849444]
[1758708637641,0.71000001,211.57,211.51,0.68]
[1758708637834,2.32563668,211.55,211.51,0.68]
[1758708638052,2.32563668,211.55,211.52,0.68]
[1758708638363,3.03563668,211.55,211.5,7.87849444]
[1758708638556,2.32563668,211.55,211.51,0.68]
[1758708638760,2.32563668,211.55,211.52,0.68]
[1758708639133,2.32563668,211.56,211.52,0.68]
[1758708639333,3.03563668,211.56,211.52,0.68]
[1758708640669,3.03563668,211.56,211.53,4.72746182]
[1758708641467,3.03563668,211.56,211.52,5.40765791]
[1758708641673,0.71,211.55,211.52,4.72765791]
[1758708642771,0.71,211.55,211.51,4.72790884]
[1758708642956,0.71,211.55,211.51,5.40790884]
[1758708644055,2.32563668,211.56,211.51,16.54768095]
[1758708644239,2.32563668,211.56,211.52,0.68]
[1758708644651,1.48974074,211.57,211.52,0.68]
[1758708644973,1.48974074,211.57,211.53,4.72746182]
[1758708645137,1.48974074,211.57,211.54,0.68]
[1758708645454,2.19974074,211.57,211.53,4.72746182]
[1758708645658,2.19974074,211.57,211.53,5.40746182]
[1758708645839,0.71,211.56,211.52,4.72765427]
[1758708646039,1.48974073,211.56,211.53,0.68]
[1758708646351,1.48974073,211.56,211.52,17.22686758]
[1758708646736,1.48974073,211.56,211.52,5.40765427]
[1758708646935,1.48974073,211.56,211.52,4.72765427]
[1758708647234,1.48974073,211.56,211.53,0.68]
[1758708647632,1.48974073,211.56,211.51,4.727875]
[1758708647859,2.19974073,211.56,211.52,0.68]
[1758708648058,1.48974073,211.56,211.51,4.727875]
[1758708648363,1.48974073,211.56,211.52,0.68]
[1758708648660,1.48974073,211.56,211.51,4.727875]
[1758708648661,1.48974073,211.56,211.53,0.68]
[1758708649042,1.48974073,211.56,211.53,5.40742157]
[1758708650356,1.48974073,211.56,211.5,14.29065874]
[1758708650357,2.19974073,211.56,211.51,4.72773089]
[1758708650548,2.19974073,211.56,211.51,5.39773089]
[1758708650748,2.19974073,211.56,211.52,0.67]
[1758708651261,0.71,211.55,211.51,4.72773089]
[1758708651561,0.71,211.55,211.51,5.39773089]
[1758708652138,1.48974073,211.56,211.52,5.39749599]
[1758708652346,2.19974073,211.56,211.52,5.39749599]
[1758708652545,1.48974073,211.56,211.53,0.67]
[1758708652962,1.48974073,211.56,211.54,0.67]
[1758708653268,1.48974073,211.56,211.52,5.39749599]
[1758708653559,1.48974073,211.56,211.53,0.67]
[1758708654765,1.48974073,211.57,211.53,4.72741835]
[1758708655740,1.48974073,211.57,211.51,2.4707911]
[1758708655741,1.48974073,211.57,211.52,4.72768532]
[1758708655972,1.48974073,211.57,211.52,5.39768532]
[1758708656270,1.48974073,211.59,211.53,0.67]
[1758708657663,1.48974073,211.59,211.54,4.72723834]
[1758708657866,1.48974073,211.59,211.55,0.67]
[1758708658070,1.48974073,211.59,211.56,0.67]
[1758708658452,1.48974073,211.59,211.54,16.5453342]
[1758708658775,1.48974073,211.59,211.55,0.67]
[1758708659176,1.48974073,211.59,211.56,0.67]
[1758708659352,1.48974073,211.59,211.57,0.69]
[1758708659855,1.48974073,211.59,211.57,5.41638054]
[1758708660260,1.48974073,211.59,211.55,4.72685646]
[1758708660571,1.48974073,211.57,211.53,4.72736477]
[1758708660947,1.48974073,211.57,211.53,17.23601933]
[1758708662372,1.48974073,211.57,211.54,0.69]
[1758708662569,1.48974073,211.57,211.53,4.72736477]
[1758708662754,1.48974073,211.57,211.53,5.41736477]
[1758708665066,1.48974073,211.58,211.54,0.69]
[1758708665971,1.48974073,211.58,211.53,4.72736477]
[1758708666159,1.48974073,211.58,211.54,5.41712083]
[1758708667269,1.48974073,211.58,211.53,11.81865456]
[1758708667476,1.48974073,211.58,211.54,0.69]
[1758708667679,1.48974073,211.58,211.52,5.41768532]
[1758708667864,1.48974073,211.58,211.53,0.69]
[1758708668176,1.48974073,211.58,211.54,0.69]
[1758708668856,1.48974073,211.58,211.54,5.4170178]
[1758708669574,0.62,211.61,211.54,5.4170178]
[1758708670878,5.34577948,211.61,211.54,5.4170178]
[1758708674773,1.48974073,211.56,211.52,4.72768532]
[1758708674981,1.48974073,211.56,211.51,7.19864655]
[1758708675160,1.48974073,211.56,211.52,0.69]
[1758708675859,1.48974073,211.56,211.53,0.69]
[1758708676679,1.48974073,211.56,211.54,0.69]
[1758708678559,4.72562245,211.62,211.55,0.69]
[1758708678882,1.48974073,211.59,211.55,0.69]
[1758708679662,1.48974073,211.59,211.56,4.72679145]
[1758708679875,1.48974073,211.59,211.56,5.41679145]
[1758708680467,1.48974073,211.59,211.57,0.69]
[1758708683678,1.48974073,211.59,211.58,0.69]
[1758708684587,1.48974073,211.61,211.58,0.69]
[1758708684786,0.1,211.65,211.58,0.69]
[1758708684980,1.48974073,211.62,211.58,0.69]
[1758708685595,1.48974073,211.62,211.59,4.72612127]
[1758708685769,1.48974073,211.62,211.6,0.69]
[1758708686177,1.48974073,211.62,211.58,0.69]
[1758708686683,1.48974073,211.62,211.59,0.69]
[1758708686863,4.72524288,211.63,211.59,0.69]
[1758708687070,1.48974073,211.61,211.59,0.69]
[1758708687584,1.48974073,211.61,211.6,0.69]
[1758708689985,1.48974073,211.61,211.58,0.69]
[1758708690492,1.48974073,211.59,211.55,0.69]
[1758708690684,1.48974073,211.59,211.56,0.69]
[1758708690866,1.48974073,211.59,211.57,0.69]
[1758708691067,4.72548703,211.62,211.57,0.69]
[1758708691281,1.48974073,211.59,211.57,0.69]
[1758708691890,4.72575713,211.61,211.57,0.69]
[1758708692098,1.48974073,211.59,211.54,5.41722697]
[1758708692270,1.48974073,211.57,211.54,0.69]
[1758708692470,1.48974073,211.57,211.53,2.4704301]
[1758708692792,1.48974073,211.57,211.53,3.1604301]
[1758708693379,6.21637075,211.57,211.53,3.1604301]
[1758708693569,1.48974073,211.55,211.53,2.4704301]
[1758708693768,1.48974073,211.55,211.49,0.69]
[1758708693965,4.72663002,211.57,211.51,2.47108485]
[1758708693966,1.48974073,211.54,211.51,2.47108485]
[1758708694379,1.48974073,211.54,211.51,3.16108485]
[1758708696595,1.48974073,211.55,211.52,0.69]
[1758708696790,1.48974073,211.55,211.53,0.69]
[1758708697382,1.48974073,211.57,211.54,0.69]
[1758708697573,1.48974073,211.59,211.54,5.41708979]
[1758708697781,1.48974073,211.59,211.55,0.69]
[1758708698084,1.48974073,211.59,211.56,0.69]
[1758708698273,6.21589446,211.59,211.54,4.72708979]
[1758708698475,6.21589446,211.59,211.54,5.41708979]
[1758708698476,1.48974073,211.57,211.54,5.41708979]
[1758708699023,1.48974073,211.63,211.56,0.14216157]
[1758708699296,1.48974073,211.63,211.57,0.69]
[1758708699774,1.48974073,211.63,211.58,16.54220625]
[1758708699976,1.48974073,211.63,211.59,0.69]
[1758708700793,1.48974073,211.63,211.58,16.54220625]
[1758708700980,1.48974073,211.63,211.6,0.69]
[1758708701504,1.48974073,211.63,211.61,0.69]
[1758708702294,1.48974073,211.63,211.58,11.81586161]
[1758708702599,1.48974073,211.63,211.59,0.69]
[1758708702815,1.48974073,211.63,211.58,11.81586161]
[1758708703001,1.48974073,211.63,211.6,0.69]
[1758708703304,1.48974073,211.63,211.58,12.50586161]
[1758708703490,1.48974073,211.63,211.59,0.69]
[1758708703690,1.48974073,211.63,211.58,11.81586161]
[1758708703884,1.48974073,211.63,211.6,0.69]
[1758708704286,1.48974073,211.63,211.6,5.41567611]
[1758708704798,1.48974073,211.61,211.58,0.69]
[1758708704982,1.48974073,211.61,211.59,0.69]
[1758708705182,1.48974073,211.61,211.6,0.69]
[1758708706012,1.48974073,211.61,211.6,5.41589792]
[1758708706607,2.32657067,211.62,211.6,5.41589792]
[1758708706982,2.32657067,211.62,211.6,4.72589792]
[1758708707189,2.32657067,211.62,211.6,5.41589792]
[1758708708292,2.32657067,211.64,211.61,0.69]